[Event "V Sunway Sitges Open 2018"]
[Site "Sitges"]
[Date "2018.12.22"]
[Round "9"]
[White "Bolat, Inayat"]
[Black "May Freixa, Josep"]
[Result "1-0"]
[ECO "B28"]
[WhiteElo "1262"]
[BlackElo "1749"]
[Annotator "NA RC"]
[PlyCount "39"]
[EventDate "2018.12.14"]
[EventType "swiss"]
[EventCountry "ESP"]
[SourceTitle "playchess.com"]
[Source "ChessBase"]
[SourceQuality "1"]
[TimeControl "40/5400+30:1800+30"]

1. e4 {[%emt 0:00:00]} c5 {[%emt 0:00:00]} 2. Nf3 {[%emt 0:00:00]} a6 {[%emt 0:00:00]} 3. c3 {[%emt 0:00:04]} Nf6 {[%emt 0:00:22]} 4. e5 {[%emt 0:01:29]} Nd5 {[%emt 0:00:48]} 5. d4 {[%emt 0:01:33]} cxd4 {[%emt 0:02:30]} 6. cxd4 {[%emt 0:01:06]} e6 {[%emt 0:07:54]} 7. Nc3 {[%emt 0:01:27]} Nxc3 {[%emt 0:08:06]} 8. bxc3 {[%emt 0:00:11]} d5 {[%emt 0:08:45]} 9. Bd3 {[%emt 0:02:59]} Be7 {[%emt 0:02:07]} 10. O-O {[%emt 0:03:42]} b5 {[%emt 0:01:54]} 11. a4 {[%emt 0:01:29]} bxa4 {[%emt 0:04:27]} 12. Qxa4+ {[%emt 0:00:40]} Bd7 {[%emt 0:03:00]} 13. Qc2 {[%emt 0:01:49]} h6 {[%emt 0:01:40]} 14. c4 {[%emt 0:00:54]} dxc4 {[%emt 0:02:53]} 15. Bxc4 {[%emt 0:02:52]} a5 {[%emt 0:02:46]} 16. d5 {[%emt 0:02:12]} exd5 {[%emt 0:05:09]} 17. Bxd5 {[%emt 0:00:34]} Ra6 {[%emt 0:00:36]} 18. Bb2 {[%emt 0:02:13]} O-O {[%emt 0:03:05]} 19. Bc4 {[%emt 0:05:54]} Qc7 {[%emt 0:02:56]} 20. Bxf7+ {[%emt 0:02:04] Qc8 Bc4+} 1-0

[Event "V Sunway Sitges Open 2018"]
[Site "Sitges"]
[Date "2018.12.23"]
[Round "10"]
[White "Santos Ruiz, Miguel"]
[Black "Petrosyan, Manuel"]
[Result "1-0"]
[ECO "E32"]
[WhiteElo "2523"]
[BlackElo "2565"]
[Annotator "RC"]
[PlyCount "87"]
[EventDate "2018.12.14"]
[EventType "swiss"]
[EventCountry "ESP"]
[SourceTitle "playchess.com"]
[Source "ChessBase"]
[SourceQuality "1"]
[TimeControl "40/5400+30:1800+30"]

1. d4 {[%emt 0:00:00]} Nf6 {[%emt 0:00:38]} 2. c4 {[%emt 0:00:00]} e6 {[%emt 0:00:56]} 3. Nc3 {[%emt 0:00:00]} Bb4 {[%emt 0:02:00]} 4. Qc2 {[%emt 0:01:23]} d6 {[%emt 0:05:29]} 5. e3 {[%emt 0:01:07]} O-O {[%emt 0:00:45]} 6. Bd3 {[%emt 0:00:18]} c5 {[%emt 0:04:14]} 7. dxc5 {[%emt 0:00:27]} Bxc5 {[%emt 0:02:51]} 8. Nf3 {[%emt 0:01:21]} Nc6 {[%emt 0:03:54]} 9. a3 {[%emt 0:00:10]} a6 {[%emt 0:00:04]} 10. O-O {[%emt 0:07:40]} h6 {[%emt 0:00:20]} 11. Rd1 {[%emt 0:16:37]} Qe7 12. b3 {[%emt 0:10:21]} Bd7 {[%emt 0:03:22]} 13. Bb2 Rfd8 14. Rd2 {[%emt 0:07:21]} Rac8 {[%emt 0:04:27]} 15. Rad1 {[%emt 0:00:24]} Ba7 {[%emt 0:07:56]} 16. Be2 Bb8 17. Qb1 {[%emt 0:12:35]} Bc7 {[%emt 0:09:36]} 18. h3 {[%emt 0:05:19]} Rb8 {[%emt 0:00:54]} 19. a4 {[%emt 0:01:00]} Ne8 {[%emt 0:01:02]} 20. Ba3 {[%emt 0:00:54]} Na7 {[%emt 0:05:58]} 21. Nd4 {[%emt 0:05:42]} Nc8 {[%emt 0:07:22]} 22. Bf3 {[%emt 0:04:50]} Bb6 {[%emt 0:05:59]} 23. b4 {[%emt 0:04:21]} Qh4 {[%emt 0:04:39]} 24. c5 {[%emt 0:09:21]} Bc7 {[%emt 0:02:02]} 25. b5 Ba5 {[%emt 0:07:54]} 26. Bb4 {[%emt 0:01:55]} Bxb4 {[%emt 0:01:05]} 27. Qxb4 {[%emt 0:00:04]} axb5 {[%emt 0:04:56]} 28. axb5 d5 {[%emt 0:03:27]} 29. e4 {[%emt 0:07:12]} dxe4 {[%emt 0:01:17]} 30. Bxe4 {[%emt 0:00:55]} Nf6 {[%emt 0:06:20]} 31. Nxe6 {[%emt 0:00:18]} Nxe4 {[%emt 0:00:47]} 32. Nxd8 {[%emt 0:00:26]} Bf5 {[%emt 0:00:09]} 33. Nxe4 {[%emt 0:00:44]} Qxe4 {[%emt 0:00:02]} 34. Qxe4 {[%emt 0:00:13]} Bxe4 {[%emt 0:00:01]} 35. Re2 {[%emt 0:00:11]} Bg6 {[%emt 0:00:08]} 36. Re8+ {[%emt 0:00:58]} Kh7 {[%emt 0:00:01]} 37. Nxb7 {[%emt 0:00:10]} Rxb7 {[%emt 0:00:04]} 38. Rxc8 {[%emt 0:00:04]} Rxb5 {[%emt 0:00:04]} 39. Rc1 {[%emt 0:00:02]} Bf5 {[%emt 0:00:14]} 40. Rc7 {[%emt 0:00:00]} Kg6 {[%emt 0:00:00]} 41. c6 {[%emt 0:00:55]} Rb8 {[%emt 0:01:03]} 42. Rb7 {[%emt 0:00:11]} Re8 {[%emt 0:00:29]} 43. c7 {[%emt 0:00:11]} Kf6 {[%emt 0:00:03]} 44. Rb8 {[%emt 0:00:17]} 1-0

[Event "V Sunway Sitges Open 2018"]
[Site "Sitges"]
[Date "2018.12.23"]
[Round "10"]
[White "Raja Rithvik R"]
[Black "Ortega Ruiz, Jose Miguel"]
[Result "1/2-1/2"]
[ECO "A40"]
[WhiteElo "2415"]
[BlackElo "2298"]
[Annotator "ChessBase"]
[PlyCount "58"]
[EventDate "2018.12.14"]
[EventType "swiss"]
[EventCountry "ESP"]
[SourceTitle "playchess.com"]
[Source "ChessBase"]
[SourceQuality "1"]
[TimeControl "40/5400+30:1800+30"]

1. d4 {[%emt 0:00:00]} Nf6 {[%emt 0:00:00]} 2. c4 {[%emt 0:00:00]} e6 {[%emt 0:00:00]} 3. g3 {[%emt 0:00:00]} Bb4+ {[%emt 0:01:00]} 4. Bd2 {[%emt 0:00:00]} Bxd2+ {[%emt 0:00:08]} 5. Nxd2 {[%emt 0:01:52]} Nc6 {[%emt 0:00:08]} 6. Ngf3 {[%emt 0:02:36]} d6 {[%emt 0:00:07]} 7. Bg2 {[%emt 0:00:13]} O-O {[%emt 0:00:11]} 8. O-O {[%emt 0:00:14]} e5 {[%emt 0:00:12]} 9. d5 {[%emt 0:00:57]} Nb8 {[%emt 0:00:05]} 10. e4 {[%emt 0:00:10]} a5 {[%emt 0:00:04]} 11. Ne1 {[%emt 0:01:49]} Na6 {[%emt 0:00:18]} 12. Nd3 {[%emt 0:00:51]} Bd7 13. b3 {[%emt 0:07:17]} c6 {[%emt 0:00:22]} 14. dxc6 {[%emt 0:03:53]} Bxc6 {[%emt 0:00:37]} 15. Re1 {[%emt 0:01:50]} Qb6 {[%emt 0:01:01]} 16. Nb1 {[%emt 0:06:55]} Qd4 {[%emt 0:03:48]} 17. Na3 {[%emt 0:01:12]} Nc5 {[%emt 0:02:58]} 18. Nxc5 {[%emt 0:00:07]} Qxc5 {[%emt 0:00:03]} 19. Nc2 {[%emt 0:00:35]} a4 {[%emt 0:00:47]} 20. Qd3 {[%emt 0:02:38]} b5 {[%emt 0:00:29]} 21. cxb5 {[%emt 0:09:21]} Bxb5 {[%emt 0:00:37]} 22. Qd2 {[%emt 0:00:04]} axb3 {[%emt 0:00:29]} 23. axb3 {[%emt 0:00:08]} Rxa1 {[%emt 0:02:30]} 24. Rxa1 {[%emt 0:00:12]} Rc8 {[%emt 0:00:40]} 25. Ne3 {[%emt 0:00:44]} g6 {[%emt 0:01:09]} 26. h3 {[%emt 0:04:51]} Qc3 {[%emt 0:01:33]} 27. Rd1 {[%emt 0:02:07]} Qxd2 {[%emt 0:00:18]} 28. Rxd2 {[%emt 0:00:05]} Rc1+ {[%emt 0:00:06]} 29. Kh2 Rc6 1/2-1/2

[Event "V Sunway Sitges Open 2018"]
[Site "Sitges"]
[Date "2018.12.23"]
[Round "10"]
[White "Sanchez Lopez, Juan Manuel"]
[Black "Lopez Capape, Armando"]
[Result "1-0"]
[ECO "A10"]
[WhiteElo "2065"]
[BlackElo "1827"]
[Annotator "NA RC"]
[PlyCount "81"]
[EventDate "2018.12.14"]
[EventType "swiss"]
[EventCountry "ESP"]
[SourceTitle "playchess.com"]
[Source "ChessBase"]
[SourceQuality "1"]
[TimeControl "40/5400+30:1800+30"]

1. c4 {[%emt 0:01:46]} b6 {[%emt 0:00:08]} 2. Nc3 {[%emt 0:00:05]} e6 {[%emt 0:00:06]} 3. e4 {[%emt 0:00:07]} Bb7 {[%emt 0:01:09]} 4. g3 {[%emt 0:00:06]} f5 {[%emt 0:11:24]} 5. Bg2 {[%emt 0:01:52] A10: English Opening: Unusual Replies for Black} Nf6 {[%emt 0:08:38]} 6. d3 {[%emt 0:00:43]} Bb4 {[%emt 0:10:08] LiveBook: 17 Games} (6... fxe4 7. Nge2 Bc5 8. O-O O-O 9. Bg5 Nc6 10. d4 Be7 11. Bxf6 Bxf6 12. Nxe4 Kh8 {½-½ (39) Admiraal,M (2491)-David,A (2549) Belgium 2018}) 7. Nge2 {[%emt 0:00:21]} O-O {[%emt 0:06:27]} 8. O-O {[%emt 0:02:27]} Na6 {[%emt 0:08:59]} 9. a3 {[%emt 0:00:39]} Bxc3 {[%emt 0:04:29]} 10. Nxc3 {[%emt 0:00:18]} d6 $146 {[%emt 0:06:19]} ({Predecessor:} 10... fxe4 11. dxe4 Nc5 12. e5 Bxg2 13. Kxg2 {½-½ (30) Wolfram,B (2259)-Lipka,J (2419) Austria 2014}) 11. b4 {[%emt 0:05:50]} Qd7 {[%emt 0:05:19]} 12. f4 {[%emt 0:02:28]} c5 {[%emt 0:07:37]} 13. Rb1 {[%emt 0:03:29]} Nc7 {[%emt 0:02:50]} 14. Re1 {[%emt 0:02:50]} g6 {[%emt 0:08:38]} 15. d4 {[%emt 0:02:32]} cxb4 {[%emt 0:05:50]} 16. axb4 {[%emt 0:00:39]} d5 {[%emt 0:06:53]} 17. cxd5 {[%emt 0:05:14]} exd5 {[%emt 0:00:09]} 18. e5 {[%emt 0:02:02]} Ne4 {[%emt 0:00:06]} 19. Nxe4 {[%emt 0:00:17]} dxe4 {[%emt 0:00:48]} 20. b5 {[%emt 0:00:57] [#]} Bd5 {[%emt 0:00:31]} ({Black should play} 20... Nd5 $1 $17) 21. Bf1 {[%emt 0:00:28]} Rfc8 {[%emt 0:00:22]} 22. Ba3 {[%emt 0:02:53]} Ne6 {[%emt 0:01:45]} 23. Qd2 {[%emt 0:00:51]} Qb7 {[%emt 0:01:33]} 24. Rbc1 {[%emt 0:02:17]} Kf7 {[%emt 0:00:41]} 25. Qb4 {[%emt 0:03:25]} Qd7 {[%emt 0:00:18]} 26. Kf2 {[%emt 0:04:11]} g5 {[%emt 0:01:05]} 27. fxg5 {[%emt 0:02:50]} Nxg5 {[%emt 0:00:15]} 28. Qd2 {[%emt 0:01:17]} Nf3 {[%emt 0:00:37]} 29. Qh6 {[%emt 0:00:09]} Kg8 {[%emt 0:00:40] [#]} 30. Red1 $15 {[%emt 0:02:28]} (30. Rxc8+ $1 $16 Rxc8 31. Rc1) 30... Qe6 {[%emt 0:00:39]} 31. Qxe6+ Bxe6 {[%emt 0:00:05]} 32. Rc6 {[%emt 0:09:33]} Rxc6 {[%emt 0:00:42]} 33. bxc6 Bd5 34. c7 {[%emt 0:01:00]} Rc8 {[%emt 0:01:12]} 35. Bd6 {[%emt 0:00:20]} Bb7 {[%emt 0:00:28]} 36. Bh3 {[%emt 0:00:14]} e3+ {[%emt 0:00:35]} 37. Kxe3 {[%emt 0:00:22]} Re8 {[%emt 0:00:33]} 38. Bxf5 {[%emt 0:00:29]} Ng5 {[%emt 0:00:28]} 39. Rc1 {[%emt 0:01:24]} Bc8 {[%emt 0:00:09]} 40. Bxc8 {[%emt 0:00:00]} Rxc8 {[%emt 0:00:00]} 41. h4 1-0

[Event "V Sunway Sitges Open 2018"]
[Site "Sitges"]
[Date "2018.12.23"]
[Round "10"]
[White "Munoz Suarez, Luis Alberto"]
[Black "Skagseth, Havard M"]
[Result "1/2-1/2"]
[ECO "B74"]
[WhiteElo "1937"]
[BlackElo "2002"]
[Annotator "NA RC"]
[PlyCount "86"]
[EventDate "2018.12.14"]
[EventType "swiss"]
[EventCountry "ESP"]
[SourceTitle "playchess.com"]
[Source "ChessBase"]
[SourceQuality "1"]
[TimeControl "40/5400+30:1800+30"]

1. e4 {[%emt 0:00:00]} c5 {[%emt 0:03:18]} 2. Nf3 {[%emt 0:00:00]} d6 {[%emt 0:00:05]} 3. d4 {[%emt 0:00:00]} Nf6 {[%emt 0:00:18]} 4. Nc3 {[%emt 0:00:04]} cxd4 {[%emt 0:00:05] LiveBook: 6237 Games} 5. Nxd4 {[%emt 0:00:08]} g6 {[%emt 0:00:15]} 6. Be2 {[%emt 0:02:30]} Bg7 {[%emt 0:00:06]} 7. O-O {[%emt 0:00:10]} Nc6 {[%emt 0:00:26]} 8. Nb3 {[%emt 0:01:56]} O-O {[%emt 0:00:35]} 9. Be3 {[%emt 0:03:26]} Be6 {[%emt 0:03:28]} 10. f4 {[%emt 0:00:48]} a6 {[%emt 0:02:34]} 11. g4 {[%emt 0:16:22] B74: Sicilian Dragon: Classical System with 9 Nb3} (11. Kh1 b5 12. Bf3 Rc8 13. Nd5 Bxd5 14. exd5 Na5 15. Qe2 Nc4 16. Bd4 Qd7 17. Rae1 Rfe8 18. Qd1 e5 19. dxe6 fxe6 {1-0 (38) Harikrishna,P (2740)-Mamedov,N (2597) Kocaeli 2015}) 11... b5 {[%emt 0:05:41]} 12. Nd4 $146 {[%emt 0:06:11]} ({Predecessor:} 12. g5 Nd7 13. Rf2 Rc8 14. h4 Nb6 15. h5 Nc4 16. Bxc4 Bxc4 17. Qg4 f5 18. Qh4 gxh5 19. exf5 {0-1 (28) Neretljak,N (2083)-Blomqvist,E (2554) Vaxjo 2017}) 12... Nxd4 {[%emt 0:16:39]} 13. Bxd4 {[%emt 0:00:16]} Rc8 {[%emt 0:00:21]} 14. Nd5 {[%emt 0:15:33]} Bxd5 {[%emt 0:06:34]} 15. exd5 {[%emt 0:00:19]} Nd7 {[%emt 0:00:10]} 16. Bxg7 {[%emt 0:07:45]} Kxg7 {[%emt 0:00:20]} 17. c3 {[%emt 0:03:49]} Qb6+ {[%emt 0:05:22]} 18. Kh1 {[%emt 0:00:17]} Qc5 {[%emt 0:00:07]} 19. Qd2 {[%emt 0:02:37]} Nb6 {[%emt 0:05:25]} 20. Rad1 {[%emt 0:00:29]} Rc7 {[%emt 0:03:31]} 21. Rf3 {[%emt 0:03:11]} Nc4 {[%emt 0:02:48]} 22. Bxc4 {[%emt 0:00:29]} bxc4 {[%emt 0:00:42]} 23. f5 {[%emt 0:00:32]} f6 $1 {[%emt 0:02:04]} 24. g5 {[%emt 0:08:30]} Qb5 $18 {[%emt 0:21:13]} (24... fxg5 $14 25. Qxg5 e5) 25. Rh3 {[%emt 0:08:03]} Qe8 {[%emt 0:05:09]} 26. Rg1 {[%emt 0:05:53]} Kg8 {[%emt 0:04:26]} 27. fxg6 {[%emt 0:07:03]} hxg6 {[%emt 0:00:16]} 28. Qd4 {[%emt 0:04:18]} Qf7 {[%emt 0:05:30]} 29. Rg4 {[%emt 0:01:46]} Rc5 {[%emt 0:02:44]} 30. gxf6 {[%emt 0:01:51]} Qxf6 {[%emt 0:01:17]} 31. Rxg6+ {[%emt 0:00:26]} Qxg6 {[%emt 0:00:05]} 32. Rg3 {[%emt 0:00:09]} Rf6 {[%emt 0:01:49]} 33. b4 {[%emt 0:00:56]} cxb3 {[%emt 0:01:26]} 34. axb3 {[%emt 0:00:06]} Kf7 {[%emt 0:00:17]} 35. Rxg6 {[%emt 0:00:08]} Rxg6 {[%emt 0:00:46]} 36. b4 {[%emt 0:01:15]} Rc8 {[%emt 0:00:53]} 37. c4 {[%emt 0:00:19]} Rcg8 {[%emt 0:01:00]} 38. c5 {[%emt 0:00:10]} Rg4 {[%emt 0:00:29]} 39. Qf2+ {[%emt 0:00:12]} Ke8 {[%emt 0:00:07]} 40. c6 {[%emt 0:00:00]} Rxb4 {[%emt 0:00:00]} 41. Qf5 {[%emt 0:06:09]} Ra4 {[%emt 0:08:01]} 42. h3 {[%emt 0:04:38]} Ra1+ {[%emt 0:02:11]} 43. Kh2 {[%emt 0:00:06]} Ra2+ {[%emt 0:00:44] Kg2} 1/2-1/2

[Event "V Sunway Sitges Open 2018"]
[Site "Sitges"]
[Date "2018.12.23"]
[Round "10"]
[White "Walter Travella, German"]
[Black "Gonzalez Pabollet, Jesus Maria S"]
[Result "1/2-1/2"]
[ECO "B40"]
[WhiteElo "1917"]
[BlackElo "1815"]
[Annotator "NA RC"]
[PlyCount "70"]
[EventDate "2018.12.14"]
[EventType "swiss"]
[EventCountry "ESP"]
[SourceTitle "playchess.com"]
[Source "ChessBase"]
[SourceQuality "1"]
[TimeControl "40/5400+30:1800+30"]

1. e4 {[%emt 0:34:30]} c5 {[%emt 0:00:00]} 2. Nf3 {[%emt 0:00:54]} e6 {[%emt 0:00:11]} 3. d4 {[%emt 0:00:14]} cxd4 {[%emt 0:00:30]} 4. Nxd4 {[%emt 0:00:11]} Nf6 {[%emt 0:05:20]} 5. Nc3 {[%emt 0:00:14]} Nc6 {[%emt 0:01:48]} 6. Be2 {[%emt 0:01:53]} a6 {[%emt 0:11:09]} (6... Bb4 $11) 7. O-O {[%emt 0:00:48]} ({White should play} 7. Nxc6 $16 bxc6 8. e5) 7... Be7 {[%emt 0:04:18] LiveBook: 3 Games B46: Sicilian: Taimanov: 5 Nc3 a6} (7... Qc7 $11 {keeps the balance.}) (7... d6 8. Be3 Be7 9. f4 O-O 10. Qe1 Nxd4 11. Bxd4 b5 12. a3 Bb7 13. Qg3 Bc6 14. Kh1 Qc7 15. Rae1 Rac8 16. e5 dxe5 17. Bxe5 Qb7 18. f5 a5 19. fxe6 fxe6 20. Bd3 Rf7 21. Qh3 b4 22. axb4 axb4 23. Ne2 {½-½ (45) Kulaots,K (2590)-Ladva,O (2517) Tallinn 2018}) 8. Nxc6 {[%emt 0:01:50]} dxc6 {[%emt 0:04:06]} 9. Qxd8+ {[%emt 0:00:10]} Bxd8 {[%emt 0:00:19]} 10. Bg5 $146 {[%emt 0:04:45]} (10. e5 $16 Nd7 11. f4) ({Predecessor:} 10. Bf4 b6 11. Rad1 Ra7 12. Rd2 Rd7 13. Rfd1 Rxd2 14. Rxd2 Nd7 15. f3 {1-0 (43) Komysheva,M (2050)-Zdrazil,B (1907) Olomouc 2013}) 10... h6 {[%emt 0:04:00]} 11. Be3 {[%emt 0:03:30]} Bc7 {[%emt 0:08:13]} 12. f4 {[%emt 0:01:26]} O-O {[%emt 0:06:16]} 13. g4 {[%emt 0:03:09]} b6 {[%emt 0:03:51]} 14. Rad1 {[%emt 0:08:41]} e5 {[%emt 0:12:04]} 15. f5 {[%emt 0:01:03]} b5 {[%emt 0:05:20]} 16. Bc5 {[%emt 0:01:35]} Re8 {[%emt 0:01:41]} 17. Bf3 $14 {[%emt 0:01:01]} Nd7 {[%emt 0:03:14]} 18. Be3 {[%emt 0:00:32]} Nb6 {[%emt 0:01:42]} 19. b3 {[%emt 0:00:20]} Bb7 {[%emt 0:01:00]} 20. Kg2 {[%emt 0:00:32]} Rad8 {[%emt 0:01:32]} 21. h4 {[%emt 0:00:40]} Rxd1 {[%emt 0:05:18]} 22. Rxd1 {[%emt 0:02:41]} Rd8 {[%emt 0:00:43]} 23. f6 {[%emt 0:03:15]} Rxd1 {[%emt 0:01:53]} 24. Nxd1 {[%emt 0:01:25]} Nd7 {[%emt 0:00:15]} 25. fxg7 {[%emt 0:00:48]} Kxg7 {[%emt 0:00:17]} 26. g5 {[%emt 0:01:41]} hxg5 {[%emt 0:00:53]} 27. Bxg5 {[%emt 0:01:59]} f6 {[%emt 0:01:09]} 28. Bd2 {[%emt 0:01:17]} Nf8 {[%emt 0:05:19]} 29. Ne3 {[%emt 0:00:29]} Ng6 {[%emt 0:01:28]} 30. Nf5+ {[%emt 0:00:15]} Kh7 {[%emt 0:02:52]} 31. h5 {[%emt 0:00:49]} Nf4+ {[%emt 0:01:32]} 32. Bxf4 {[%emt 0:04:56]} exf4 {[%emt 0:00:04]} 33. Nd4 {[%emt 0:00:24]} Be5 {[%emt 0:05:15]} 34. Ne6 {[%emt 0:01:10]} Bc8 {[%emt 0:00:20]} 35. Bg4 {[%emt 0:04:35]} Bxe6 {[%emt 0:01:12]} 1/2-1/2

[Event "V Sunway Sitges Open 2018"]
[Site "Sitges"]
[Date "2018.12.23"]
[Round "10"]
[White "Garcia Punzano, Josep Lluis"]
[Black "Isaksson, Philip"]
[Result "0-1"]
[ECO "E06"]
[WhiteElo "1759"]
[BlackElo "1459"]
[Annotator "NA RC"]
[PlyCount "81"]
[EventDate "2018.12.14"]
[EventType "swiss"]
[EventCountry "ESP"]
[SourceTitle "playchess.com"]
[Source "ChessBase"]
[SourceQuality "1"]
[TimeControl "40/5400+30:1800+30"]

1. d4 d5 2. c4 {[%emt 0:00:25]} e6 {[%emt 0:00:02]} 3. g3 {[%emt 0:00:09]} Be7 {[%emt 0:01:20]} 4. Bg2 {[%emt 0:00:08]} Nf6 {[%emt 0:00:10]} 5. Nf3 {[%emt 0:00:22]} O-O {[%emt 0:00:08]} 6. Qc2 {[%emt 0:00:13]} h6 {[%emt 0:03:26]} 7. O-O {[%emt 0:00:10]} c6 {[%emt 0:14:00]} 8. Nbd2 {[%emt 0:00:30]} b6 {[%emt 0:00:58]} 9. e4 {[%emt 0:01:03]} dxe4 {[%emt 0:00:59]} 10. Nxe4 {[%emt 0:00:31]} Nxe4 {[%emt 0:00:04]} 11. Qxe4 {[%emt 0:00:11]} Bb7 {[%emt 0:01:23]} 12. Ne5 Bf6 13. Be3 {[%emt 0:05:23]} Bxe5 {[%emt 0:06:29]} 14. dxe5 {[%emt 0:00:23]} Qc7 {[%emt 0:00:10]} 15. Rad1 {[%emt 0:03:51]} Na6 {[%emt 0:06:17]} 16. h4 {[%emt 0:00:56]} Rab8 {[%emt 0:00:18]} 17. Qg4 {[%emt 0:00:23]} Kh8 {[%emt 0:03:10]} 18. Qh5 {[%emt 0:00:54]} c5 {[%emt 0:03:49]} 19. Bxb7 {[%emt 0:04:43]} Qxb7 {[%emt 0:01:48]} 20. Bg5 {[%emt 0:00:12]} Kg8 {[%emt 0:00:55]} 21. Bf4 {[%emt 0:13:18]} Rfd8 {[%emt 0:02:35]} 22. Rd6 {[%emt 0:02:39]} Nb4 {[%emt 0:01:37]} 23. Rfd1 {[%emt 0:02:49]} Qe7 {[%emt 0:00:35]} 24. Qg4 {[%emt 0:00:53]} Kh8 {[%emt 0:00:53]} 25. Qe2 {[%emt 0:04:10]} Qc7 {[%emt 0:02:32]} 26. a3 {[%emt 0:00:52]} Nc6 {[%emt 0:00:08]} 27. g4 {[%emt 0:06:50]} Nd4 {[%emt 0:01:50]} 28. Qe3 {[%emt 0:01:03]} Kg8 {[%emt 0:06:47]} 29. h5 {[%emt 0:01:35]} Rbc8 {[%emt 0:09:32]} 30. Qe4 {[%emt 0:03:20]} Qe7 {[%emt 0:04:55]} 31. Be3 {[%emt 0:02:16]} Rxd6 {[%emt 0:02:20]} 32. exd6 {[%emt 0:00:03]} Qxd6 {[%emt 0:00:13]} 33. Bxd4 {[%emt 0:00:09]} cxd4 {[%emt 0:00:31]} 34. Rxd4 Qc7 {[%emt 0:01:18]} 35. b4 {[%emt 0:01:31]} e5 {[%emt 0:00:47]} 36. Rd5 {[%emt 0:00:44]} Qxc4 {[%emt 0:00:21]} 37. Rd8+ {[%emt 0:00:02]} Rxd8 {[%emt 0:00:59]} 38. Qxc4 {[%emt 0:00:05]} Rd4 {[%emt 0:00:07]} 39. Qc7 {[%emt 0:00:27]} Rxg4+ {[%emt 0:00:22]} 40. Kf1 {[%emt 0:00:19]} Rh4 {[%emt 0:00:44]} 41. Qd8+ {[%emt 0:30:07]} 0-1

[Event "V Sunway Sitges Open 2018"]
[Site "Sitges"]
[Date "2018.12.23"]
[Round "10"]
[White "Isaksson, Max"]
[Black "Taylor, Robert Graham"]
[Result "1/2-1/2"]
[ECO "B08"]
[WhiteElo "1409"]
[BlackElo "1831"]
[Annotator "NA RC"]
[PlyCount "47"]
[EventDate "2018.12.14"]
[EventType "swiss"]
[EventCountry "ESP"]
[SourceTitle "playchess.com"]
[Source "ChessBase"]
[SourceQuality "1"]
[TimeControl "40/5400+30:1800+30"]

{[%evp 18,41,54,30,68,61,114,72,32767,32767,134,32767,32767,110,131,114,141,114,145,144,165,32767,32767,32767,32767,-10]} 1. e4 {[%emt 0:00:00]} Nf6 {[%emt 0:00:06]} 2. Nc3 {[%emt 0:00:05]} d6 {[%emt 0:01:26]} 3. d4 {[%emt 0:01:15]} g6 {[%emt 0:00:50]} 4. h3 {[%emt 0:01:42]} Bg7 {[%emt 0:00:30]} 5. Nf3 {[%emt 0:00:14]} O-O {[%emt 0:00:36]} 6. Be2 {[%emt 0:00:44]} c6 {[%emt 0:04:18]} 7. a4 {[%emt 0:00:09]} Nbd7 {[%emt 0:04:17]} 8. O-O {[%emt 0:00:09]} e5 {[%emt 0:00:33]} 9. dxe5 {[%emt 0:03:43]} dxe5 {[%emt 0:06:12]} 10. Be3 {[%emt 0:00:12]} Qc7 {[%emt 0:02:09]} 11. Bc4 {[%emt 0:01:57] LiveBook: 41 Games} h6 {[%emt 0:05:49] B08: Pirc Defence: Classical System} (11... b6 12. Qd2 Bb7 13. Rfd1 a6 14. Qd6 Rac8 15. g4 b5 16. Bb3 Qxd6 17. Rxd6 Nb8 18. Bc5 b4 19. Bxb4 c5 20. Ba3 Nxe4 21. Nxe4 Bxe4 {1-0 (65) Bellia,F (2432)-Rotstein,A (2495) Forni di Sopra 2017}) 12. Qe2 {[%emt 0:02:24]} Kh7 {[%emt 0:04:50]} 13. Rfd1 {[%emt 0:02:35]} Nh5 {[%emt 0:04:30]} 14. Bb3 $146 {[%emt 0:01:47]} ({Predecessor:} 14. g3 Qa5 15. Kh2 Nc5 16. Nd2 Ne6 17. Nb3 Qc7 18. a5 {0-1 (29) Neumann,A (2210)-Geyer,B (2090) Germany 2000}) 14... Nf4 {[%emt 0:01:16]} 15. Qd2 {[%emt 0:04:11]} g5 {[%emt 0:02:20]} 16. Qd6 {[%emt 0:07:01]} Qxd6 {[%emt 0:08:59]} 17. Rxd6 {[%emt 0:00:17]} Ng6 {[%emt 0:01:37]} 18. Rad1 {[%emt 0:06:44]} Nf6 {[%emt 0:03:01]} 19. Bc5 {[%emt 0:26:02]} g4 {[%emt 0:05:46]} 20. hxg4 {[%emt 0:02:19]} Bxg4 {[%emt 0:00:32]} 21. Rxf6 $11 {[%emt 0:03:08]} (21. R6d3 $16) 21... Bxf6 {[%emt 0:00:38]} 22. Bxf8 {[%emt 0:00:15]} Rxf8 {[%emt 0:01:22]} 23. Rd6 {[%emt 0:00:57]} Be7 {[%emt 0:04:06]} 24. Rd2 {[%emt 0:02:43]} 1/2-1/2